[Event "*** Titled Tuesday Blitz"]
[Site "Chess.com"]
[Date "2020.10.20"]
[Round "3"]
[White "LyonBeast"]
[Black "nrvisakh"]
[Result "1-0"]
[WhiteElo "3028"]
[BlackElo "2724"]
[TimeControl "180+1"]
[EndTime "10:29:03 PDT"]
[Termination "LyonBeast won by checkmate"]

1. d4 {[%clk 0:03:00.9]} 1... Nf6 {[%clk 0:02:56.9]} 2. Nf3 {[%clk 0:02:58.1]}
2... d5 {[%clk 0:02:56.3]} 3. c4 {[%clk 0:02:50.9]} 3... e6 {[%clk 0:02:55.8]}
4. Nc3 {[%clk 0:02:50.1]} 4... dxc4 {[%clk 0:02:53.3]} 5. e4 {[%clk 0:02:49.4]}
5... Bb4 {[%clk 0:02:52.3]} 6. Bxc4 {[%clk 0:02:47.1]} 6... Nxe4 {[%clk
0:02:51.8]} 7. O-O {[%clk 0:02:46.1]} 7... Nxc3 {[%clk 0:02:51.9]} 8. bxc3
{[%clk 0:02:44.3]} 8... Be7 {[%clk 0:02:52.8]} 9. Ne5 {[%clk 0:02:44.3]} 9...
O-O {[%clk 0:02:50.4]} 10. Qg4 {[%clk 0:02:42.3]} 10... Nc6 {[%clk 0:02:36.7]}
11. Re1 {[%clk 0:02:35.2]} 11... f5 {[%clk 0:02:28.4]} 12. Qg3 {[%clk
0:02:28.6]} 12... Nxe5 {[%clk 0:02:19.8]} 13. Rxe5 {[%clk 0:02:29.5]} 13... Bd6
{[%clk 0:02:18.6]} 14. Bf4 {[%clk 0:02:29.5]} 14... Bxe5 {[%clk 0:02:14]} 15.
Bxe5 {[%clk 0:02:30.4]} 15... Rf7 {[%clk 0:02:14]} 16. h4 {[%clk 0:02:29.8]}
16... a5 {[%clk 0:02:02.1]} 17. Re1 {[%clk 0:02:27.4]} 17... c6 {[%clk
0:01:52.2]} 18. a3 {[%clk 0:02:22]} 18... b5 {[%clk 0:01:48.9]} 19. Ba2 {[%clk
0:02:21.5]} 19... b4 {[%clk 0:01:47.7]} 20. a4 {[%clk 0:02:15.6]} 20... bxc3
{[%clk 0:01:34.2]} 21. Qxc3 {[%clk 0:02:16.5]} 21... Bd7 {[%clk 0:01:33.5]} 22.
Qg3 {[%clk 0:02:11.6]} 22... Rc8 {[%clk 0:01:12.3]} 23. Rc1 {[%clk 0:02:09.1]}
23... h6 {[%clk 0:01:07.1]} 24. Bc4 {[%clk 0:01:50.4]} 24... Qe8 {[%clk
0:00:43.3]} 25. Ba6 {[%clk 0:01:41.9]} 25... Ra8 {[%clk 0:00:40.9]} 26. Be2
{[%clk 0:01:42.4]} 26... c5 {[%clk 0:00:38.1]} 27. Bh5 {[%clk 0:01:29.9]} 27...
Bxa4 {[%clk 0:00:24]} 28. Rxc5 {[%clk 0:01:28]} 28... Raa7 {[%clk 0:00:24.1]}
29. d5 {[%clk 0:01:01.9]} 29... exd5 {[%clk 0:00:21.6]} 30. Rxd5 {[%clk
0:01:02.8]} 30... Qe6 {[%clk 0:00:15.9]} 31. Rd6 {[%clk 0:00:58.7]} 31... Qb3
{[%clk 0:00:15.7]} 32. Rd8+ {[%clk 0:00:57.5]} 32... Rf8 {[%clk 0:00:15.2]} 33.
Rxf8+ {[%clk 0:00:52.9]} 33... Kxf8 {[%clk 0:00:15.2]} 34. Qg6 {[%clk
0:00:52.9]} 34... Qb1+ {[%clk 0:00:08.4]} 35. Kh2 {[%clk 0:00:52.7]} 35... Qe4
{[%clk 0:00:07.2]} 36. f4 {[%clk 0:00:22.5]} 36... Re7 {[%clk 0:00:03.2]} 37.
Bd6 {[%clk 0:00:19.4]} 37... Be8 {[%clk 0:00:03.2]} 38. Qxe8# {[%clk 0:00:19]}
1-0

[Event "*** Titled Tuesday Blitz"]
[Site "Chess.com"]
[Date "2020.10.20"]
[Round "3"]
[White "Sanyura"]
[Black "kidagent"]
[Result "1/2-1/2"]
[WhiteElo "2498"]
[BlackElo "2301"]
[TimeControl "180+1"]
[EndTime "10:29:03 PDT"]
[Termination "Game drawn - insufficient material"]

1. Nf3 {[%clk 0:02:44.4]} 1... Nf6 {[%clk 0:02:59.4]} 2. g3 {[%clk 0:02:43.6]}
2... d5 {[%clk 0:02:58.9]} 3. Bg2 {[%clk 0:02:40.7]} 3... Bf5 {[%clk 0:02:57.9]}
4. O-O {[%clk 0:02:40.5]} 4... e6 {[%clk 0:02:56.6]} 5. d3 {[%clk 0:02:40.9]}
5... c6 {[%clk 0:02:55.8]} 6. Nc3 {[%clk 0:02:33.7]} 6... Be7 {[%clk 0:02:55.5]}
7. Ne5 {[%clk 0:02:27.5]} 7... Nbd7 {[%clk 0:02:53.2]} 8. Nxd7 {[%clk
0:02:26.7]} 8... Qxd7 {[%clk 0:02:49.9]} 9. e4 {[%clk 0:02:27.2]} 9... dxe4
{[%clk 0:02:39.8]} 10. dxe4 {[%clk 0:02:28.1]} 10... Bg4 {[%clk 0:02:35.7]} 11.
Qxd7+ {[%clk 0:02:26.2]} 11... Nxd7 {[%clk 0:02:35.8]} 12. f3 {[%clk 0:02:26.4]}
12... Bh5 {[%clk 0:02:35.7]} 13. Be3 {[%clk 0:02:22.9]} 13... O-O {[%clk
0:02:34.6]} 14. Rad1 {[%clk 0:02:21.4]} 14... Rfd8 {[%clk 0:02:29.7]} 15. h4
{[%clk 0:02:20.9]} 15... f6 {[%clk 0:02:26.7]} 16. Bh3 {[%clk 0:02:19.3]} 16...
Bf7 {[%clk 0:02:26.7]} 17. Kf2 {[%clk 0:02:18.5]} 17... Bc5 {[%clk 0:02:24.4]}
18. Rd2 {[%clk 0:02:15.9]} 18... Bxe3+ {[%clk 0:02:21.4]} 19. Kxe3 {[%clk
0:02:16.8]} 19... Nb6 {[%clk 0:02:21.7]} 20. b3 {[%clk 0:02:16]} 20... Kf8
{[%clk 0:02:19.8]} 21. Rfd1 {[%clk 0:02:14.5]} 21... Ke7 {[%clk 0:02:19.9]} 22.
a4 {[%clk 0:02:11.3]} 22... Rxd2 {[%clk 0:02:15.2]} 23. Rxd2 {[%clk 0:02:12.2]}
23... Rd8 {[%clk 0:02:14.7]} 24. a5 {[%clk 0:02:09.5]} 24... Nc8 {[%clk
0:02:09.5]} 25. Na4 {[%clk 0:02:07.6]} 25... Rxd2 {[%clk 0:02:04.9]} 26. Kxd2
{[%clk 0:02:08.5]} 26... b6 {[%clk 0:02:05.1]} 27. axb6 {[%clk 0:02:07]} 27...
axb6 {[%clk 0:02:04.7]} 28. Ke3 {[%clk 0:02:04.5]} 28... Kd6 {[%clk 0:02:04.2]}
29. Nb2 {[%clk 0:02:04.1]} 29... b5 {[%clk 0:02:03]} 30. Nd3 {[%clk 0:02:04.2]}
30... Nb6 {[%clk 0:01:59.7]} 31. f4 {[%clk 0:02:04.5]} 31... e5 {[%clk
0:01:54.9]} 32. h5 {[%clk 0:02:03.3]} 32... Bxh5 {[%clk 0:01:49.4]} 33. Bf5
{[%clk 0:02:01.3]} 33... h6 {[%clk 0:01:35]} 34. Bh3 {[%clk 0:01:49.5]} 34...
Bf7 {[%clk 0:01:30.7]} 35. Ne1 {[%clk 0:01:42.9]} 35... c5 {[%clk 0:01:26.6]}
36. Nf3 {[%clk 0:01:42.3]} 36... c4 {[%clk 0:01:24.3]} 37. b4 {[%clk 0:01:42.3]}
37... Be6 {[%clk 0:00:57.4]} 38. Bxe6 {[%clk 0:01:19.6]} 38... Kxe6 {[%clk
0:00:57.2]} 39. Nh4 {[%clk 0:01:20.3]} 39... g5 {[%clk 0:00:50.9]} 40. Nf5
{[%clk 0:01:19.2]} 40... gxf4+ {[%clk 0:00:36.6]} 41. gxf4 {[%clk 0:01:20.1]}
41... Na4 {[%clk 0:00:35.9]} 42. Nxh6 {[%clk 0:01:16.7]} 42... Nc3 {[%clk
0:00:35.6]} 43. Nf5 {[%clk 0:01:15.9]} 43... Na2 {[%clk 0:00:33.6]} 44. Ng7+
{[%clk 0:01:10.7]} 44... Kf7 {[%clk 0:00:32.9]} 45. Nf5 {[%clk 0:01:11.2]} 45...
Nxb4 {[%clk 0:00:29.8]} 46. Nd6+ {[%clk 0:01:10.8]} 46... Ke6 {[%clk 0:00:28.7]}
47. Nxb5 {[%clk 0:01:10.7]} 47... Nxc2+ {[%clk 0:00:28.8]} 48. Kd2 {[%clk
0:01:11.1]} 48... Nd4 {[%clk 0:00:27.3]} 49. f5+ {[%clk 0:01:11.6]} 49... Nxf5
{[%clk 0:00:22.4]} 50. exf5+ {[%clk 0:01:11.2]} 50... Kxf5 {[%clk 0:00:23.3]}
51. Ke3 {[%clk 0:01:10.6]} 51... Ke6 {[%clk 0:00:22.2]} 52. Na3 {[%clk
0:01:06.1]} 52... Kd5 {[%clk 0:00:20.2]} 53. Nc2 {[%clk 0:00:58.2]} 53... f5
{[%clk 0:00:20.4]} 54. Kf3 {[%clk 0:00:58.5]} 54... e4+ {[%clk 0:00:17.2]} 55.
Kf4 {[%clk 0:00:58.8]} 55... c3 {[%clk 0:00:16.4]} 56. Kxf5 {[%clk 0:00:57.4]}
56... e3 {[%clk 0:00:16.4]} 57. Nxe3+ {[%clk 0:00:56.9]} 57... Kd4 {[%clk
0:00:16.8]} 58. Nc2+ {[%clk 0:00:57.6]} 58... Kd3 {[%clk 0:00:17.1]} 59. Na3
{[%clk 0:00:58.3]} 59... c2 {[%clk 0:00:16.9]} 60. Nxc2 {[%clk 0:00:58.9]}
1/2-1/2

[Event "*** Titled Tuesday Blitz"]
[Site "Chess.com"]
[Date "2020.10.20"]
[Round "3"]
[White "Vanina1989"]
[Black "Alexander_Moskalenko"]
[Result "0-1"]
[WhiteElo "2668"]
[BlackElo "2900"]
[TimeControl "180+1"]
[EndTime "10:29:05 PDT"]
[Termination "Alexander_Moskalenko won on time"]

1. e4 {[%clk 0:03:00.9]} 1... c6 {[%clk 0:02:59.7]} 2. Nf3 {[%clk 0:03:00.3]}
2... d5 {[%clk 0:03:00.4]} 3. d3 {[%clk 0:03:00.9]} 3... Bg4 {[%clk 0:02:58.5]}
4. h3 {[%clk 0:02:59.6]} 4... Bxf3 {[%clk 0:02:51.4]} 5. Qxf3 {[%clk 0:02:59.3]}
5... e6 {[%clk 0:02:52.3]} 6. Be2 {[%clk 0:02:58.7]} 6... Nd7 {[%clk 0:02:51.3]}
7. O-O {[%clk 0:02:58.8]} 7... g6 {[%clk 0:02:51.8]} 8. Qg3 {[%clk 0:02:58.4]}
8... Bg7 {[%clk 0:02:51.8]} 9. Nc3 {[%clk 0:02:58.2]} 9... Qb6 {[%clk
0:02:48.5]} 10. Kh1 {[%clk 0:02:49.8]} 10... Ne7 {[%clk 0:02:48]} 11. f4 {[%clk
0:02:49]} 11... O-O {[%clk 0:02:47.2]} 12. Nd1 {[%clk 0:02:41.5]} 12... Nf6
{[%clk 0:02:28.1]} 13. Be3 {[%clk 0:02:22]} 13... Qa6 {[%clk 0:02:26.2]} 14. Nf2
{[%clk 0:02:15.3]} 14... dxe4 {[%clk 0:02:25.2]} 15. Bc5 {[%clk 0:01:53.6]}
15... Nf5 {[%clk 0:02:20.8]} 16. Qh2 {[%clk 0:01:53.3]} 16... Rfd8 {[%clk
0:02:06]} 17. g4 {[%clk 0:01:48.1]} 17... Nd4 {[%clk 0:02:05.9]} 18. Bxd4 {[%clk
0:01:41.2]} 18... Rxd4 {[%clk 0:02:06.8]} 19. g5 {[%clk 0:01:41.5]} 19... Nd5
{[%clk 0:01:52.3]} 20. Nxe4 {[%clk 0:01:40.7]} 20... Ne3 {[%clk 0:01:51.8]} 21.
Rfc1 {[%clk 0:01:38.6]} 21... Rb4 {[%clk 0:01:39]} 22. b3 {[%clk 0:00:19.3]}
22... Nxc2 {[%clk 0:01:24.5]} 23. Rxc2 {[%clk 0:00:18.6]} 23... Bxa1 {[%clk
0:01:23.3]} 24. h4 {[%clk 0:00:18.5]} 24... Bg7 {[%clk 0:01:07.3]} 25. h5 {[%clk
0:00:18.2]} 25... Qb6 {[%clk 0:01:06.7]} 26. hxg6 {[%clk 0:00:13.8]} 26... hxg6
{[%clk 0:01:07.6]} 27. Kg2 {[%clk 0:00:08.4]} 27... Qe3 {[%clk 0:01:02.2]} 28.
Bf1 {[%clk 0:00:05]} 28... Rxe4 {[%clk 0:00:56.6]} 29. dxe4 {[%clk 0:00:04.9]}
29... Qxe4+ {[%clk 0:00:57.5]} 30. Kg3 {[%clk 0:00:05.2]} 30... Qe3+ {[%clk
0:00:56.5]} 31. Kg2 {[%clk 0:00:05.7]} 31... Rd8 {[%clk 0:00:55.9]} 32. Re2
{[%clk 0:00:05.5]} 32... Qc1 {[%clk 0:00:50.3]} 33. Qg3 {[%clk 0:00:03.5]} 33...
Rd1 {[%clk 0:00:48.3]} 34. Qf3 {[%clk 0:00:04]} 34... Bf8 {[%clk 0:00:46.3]} 35.
Rf2 {[%clk 0:00:04]} 35... Bc5 {[%clk 0:00:45]} 36. Re2 {[%clk 0:00:04.5]} 36...
a5 {[%clk 0:00:43.8]} 37. Re4 {[%clk 0:00:02.2]} 37... Bd6 {[%clk 0:00:40.7]}
38. Re2 {[%clk 0:00:02.3]} 38... Qxf4 {[%clk 0:00:38]} 39. Qxf4 {[%clk
0:00:02.3]} 39... Bxf4 {[%clk 0:00:38.9]} 40. Re4 {[%clk 0:00:02.3]} 40... Bxg5
{[%clk 0:00:38.6]} 41. Ra4 {[%clk 0:00:02.5]} 41... Rd2+ {[%clk 0:00:38.9]} 42.
Kg3 {[%clk 0:00:02.9]} 42... Bd8 {[%clk 0:00:39.4]} 43. Bg2 {[%clk 0:00:02.2]}
43... Kf8 {[%clk 0:00:38.1]} 44. Kf3 {[%clk 0:00:02.2]} 44... Ke7 {[%clk
0:00:38.3]} 45. Bf1 {[%clk 0:00:02.3]} 45... Bb6 {[%clk 0:00:37.7]} 46. Be2
{[%clk 0:00:02.1]} 46... g5 {[%clk 0:00:37.2]} 0-1

[Event "*** Titled Tuesday Blitz"]
[Site "Chess.com"]
[Date "2020.10.20"]
[Round "3"]
[White "vladgoncharov"]
[Black "TheBigBoss04"]
[Result "0-1"]
[WhiteElo "2499"]
[BlackElo "2738"]
[TimeControl "180+1"]
[EndTime "10:29:06 PDT"]
[Termination "TheBigBoss04 won by resignation"]

1. d4 {[%clk 0:02:59.2]} 1... Nf6 {[%clk 0:02:59.3]} 2. c4 {[%clk 0:02:59.2]}
2... e6 {[%clk 0:02:58.9]} 3. Nf3 {[%clk 0:02:59.4]} 3... b6 {[%clk 0:02:51.5]}
4. g3 {[%clk 0:02:59]} 4... Ba6 {[%clk 0:02:50.5]} 5. Qa4 {[%clk 0:02:59]} 5...
Bb7 {[%clk 0:02:50]} 6. Bg2 {[%clk 0:02:58.5]} 6... c5 {[%clk 0:02:50.4]} 7. O-O
{[%clk 0:02:57.2]} 7... cxd4 {[%clk 0:02:42.6]} 8. Rd1 {[%clk 0:02:53.8]} 8...
Qc8 {[%clk 0:02:22.6]} 9. Rxd4 {[%clk 0:02:48.9]} 9... Bc5 {[%clk 0:02:19]} 10.
Rd1 {[%clk 0:02:48.2]} 10... Ne4 {[%clk 0:02:18.5]} 11. e3 {[%clk 0:02:45.4]}
11... O-O {[%clk 0:02:16]} 12. Nbd2 {[%clk 0:02:38.9]} 12... Be7 {[%clk
0:01:36.4]} 13. Qc2 {[%clk 0:02:37.2]} 13... f5 {[%clk 0:01:24.9]} 14. Nxe4
{[%clk 0:02:32.7]} 14... Bxe4 {[%clk 0:01:23.4]} 15. Qe2 {[%clk 0:02:32.7]}
15... Na6 {[%clk 0:01:18]} 16. Nd4 {[%clk 0:02:19.1]} 16... Bxg2 {[%clk
0:01:09.5]} 17. Kxg2 {[%clk 0:02:18.4]} 17... Nc5 {[%clk 0:01:08.3]} 18. b3
{[%clk 0:02:17.4]} 18... Qb7+ {[%clk 0:01:01.4]} 19. Qf3 {[%clk 0:02:16]} 19...
Qc7 {[%clk 0:00:46.7]} 20. Bb2 {[%clk 0:02:09.1]} 20... a6 {[%clk 0:00:44.4]}
21. Rac1 {[%clk 0:02:07.4]} 21... Rac8 {[%clk 0:00:43.8]} 22. Ne2 {[%clk
0:01:42.5]} 22... Ne4 {[%clk 0:00:39.7]} 23. Kg1 {[%clk 0:01:37.9]} 23... Ng5
{[%clk 0:00:37.1]} 24. Qg2 {[%clk 0:01:35.1]} 24... Ne4 {[%clk 0:00:32.7]} 25.
Nc3 {[%clk 0:01:33.4]} 25... Nf6 {[%clk 0:00:27.6]} 26. Ne2 {[%clk 0:01:33]}
26... Rfd8 {[%clk 0:00:26.8]} 27. h3 {[%clk 0:01:22.4]} 27... Ne8 {[%clk
0:00:16.6]} 28. g4 {[%clk 0:01:21.1]} 28... g6 {[%clk 0:00:15.4]} 29. gxf5
{[%clk 0:01:19.7]} 29... exf5 {[%clk 0:00:09.4]} 30. Nf4 {[%clk 0:01:13]} 30...
Qc6 {[%clk 0:00:03.7]} 31. Nd5 {[%clk 0:01:11.8]} 31... Bf8 {[%clk 0:00:04.3]}
32. Re1 {[%clk 0:00:59.3]} 32... Kf7 {[%clk 0:00:03]} 33. e4 {[%clk 0:00:59]}
33... Nd6 {[%clk 0:00:03.2]} 34. exf5 {[%clk 0:00:53]} 34... Nxf5 {[%clk
0:00:03.3]} 35. Re5 {[%clk 0:00:52.6]} 35... Re8 {[%clk 0:00:02.1]} 36. Rce1
{[%clk 0:00:30.9]} 36... Rxe5 {[%clk 0:00:02.3]} 37. Rxe5 {[%clk 0:00:30.2]}
37... Re8 {[%clk 0:00:02.8]} 38. Rxe8 {[%clk 0:00:30]} 38... Kxe8 {[%clk
0:00:03.7]} 39. Qe4+ {[%clk 0:00:30.2]} 39... Kf7 {[%clk 0:00:03.7]} 40. Qd4
{[%clk 0:00:19.7]} 40... Nxd4 {[%clk 0:00:03.1]} 0-1

[Event "*** Titled Tuesday Blitz"]
[Site "Chess.com"]
[Date "2020.10.20"]
[Round "3"]
[White "korkmaz16"]
[Black "AleksanderHnydiuk"]
[Result "1-0"]
[WhiteElo "2370"]
[BlackElo "2541"]
[TimeControl "180+1"]
[EndTime "10:29:07 PDT"]
[Termination "korkmaz16 won by checkmate"]

1. e4 {[%clk 0:03:00.9]} 1... c5 {[%clk 0:03:00]} 2. Nc3 {[%clk 0:02:56.4]} 2...
Nc6 {[%clk 0:02:59.4]} 3. f4 {[%clk 0:02:55.8]} 3... g6 {[%clk 0:02:58.7]} 4.
Nf3 {[%clk 0:02:55.9]} 4... Bg7 {[%clk 0:02:59.1]} 5. Bb5 {[%clk 0:02:55.8]}
5... Nd4 {[%clk 0:02:58.2]} 6. O-O {[%clk 0:02:53.9]} 6... Nxb5 {[%clk
0:02:53.5]} 7. Nxb5 {[%clk 0:02:53.6]} 7... d6 {[%clk 0:02:54.4]} 8. Nc3 {[%clk
0:02:51.8]} 8... Nf6 {[%clk 0:02:48.8]} 9. d3 {[%clk 0:02:51.3]} 9... O-O {[%clk
0:02:47.7]} 10. Qe1 {[%clk 0:02:51.3]} 10... Nd7 {[%clk 0:02:32.4]} 11. f5
{[%clk 0:02:49.7]} 11... e6 {[%clk 0:02:26.6]} 12. fxg6 {[%clk 0:02:42.5]} 12...
fxg6 {[%clk 0:02:25]} 13. Bg5 {[%clk 0:02:36.6]} 13... Qb6 {[%clk 0:02:21.7]}
14. Rb1 {[%clk 0:02:35.7]} 14... c4+ {[%clk 0:02:16.6]} 15. Kh1 {[%clk
0:02:32.8]} 15... cxd3 {[%clk 0:02:15.8]} 16. cxd3 {[%clk 0:02:32.7]} 16... Nc5
{[%clk 0:02:07]} 17. Qd2 {[%clk 0:02:24.4]} 17... Bd7 {[%clk 0:02:06.3]} 18. d4
{[%clk 0:02:21.2]} 18... Na4 {[%clk 0:02:01.5]} 19. Nxa4 {[%clk 0:01:59.6]}
19... Bxa4 {[%clk 0:02:02.4]} 20. b3 {[%clk 0:01:54.9]} 20... Bb5 {[%clk
0:02:01.5]} 21. Rf2 {[%clk 0:01:51.7]} 21... Rf7 {[%clk 0:01:57]} 22. Be3 {[%clk
0:01:47]} 22... Qa6 {[%clk 0:01:39.4]} 23. Ng5 {[%clk 0:01:43.8]} 23... Rxf2
{[%clk 0:01:35]} 24. Qxf2 {[%clk 0:01:43.3]} 24... Rf8 {[%clk 0:01:33.8]} 25.
Qh4 {[%clk 0:01:38.7]} 25... h6 {[%clk 0:01:29.1]} 26. Nxe6 {[%clk 0:01:38.3]}
26... Qxa2 {[%clk 0:01:21.4]} 27. Rg1 {[%clk 0:01:34.9]} 27... Qxb3 {[%clk
0:00:39]} 28. Nxf8 {[%clk 0:01:22.3]} 28... Qxe3 {[%clk 0:00:37.8]} 29. Nxg6
{[%clk 0:01:17]} 29... Bxd4 {[%clk 0:00:37.1]} 30. Rd1 {[%clk 0:00:47.3]} 30...
Be2 {[%clk 0:00:36.5]} 31. Ne7+ {[%clk 0:00:32.1]} 31... Kf7 {[%clk 0:00:34.5]}
32. Nf5 {[%clk 0:00:32]} 32... Qb3 {[%clk 0:00:21.8]} 33. Rc1 {[%clk 0:00:19.7]}
33... Bf6 {[%clk 0:00:16.4]} 34. Qxh6 {[%clk 0:00:17.2]} 34... Bf3 {[%clk
0:00:06.5]} 35. Rc7+ {[%clk 0:00:16.3]} 35... Ke8 {[%clk 0:00:02]} 36. Qg6+
{[%clk 0:00:13.3]} 36... Kd8 {[%clk 0:00:01.9]} 37. Qxf6+ {[%clk 0:00:11.3]}
37... Kxc7 {[%clk 0:00:01.9]} 38. Qxd6+ {[%clk 0:00:11.5]} 38... Kc8 {[%clk
0:00:02.3]} 39. Ne7# {[%clk 0:00:11.6]} 1-0

[Event "*** Titled Tuesday Blitz"]
[Site "Chess.com"]
[Date "2020.10.20"]
[Round "3"]
[White "Shockerlover"]
[Black "ChronicUnhappiness"]
[Result "0-1"]
[WhiteElo "1888"]
[BlackElo "2283"]
[TimeControl "180+1"]
[EndTime "10:29:08 PDT"]
[Termination "ChronicUnhappiness won on time"]

1. d4 {[%clk 0:03:00.9]} 1... Nf6 {[%clk 0:02:58.9]} 2. Nf3 {[%clk 0:03:00.7]}
2... e6 {[%clk 0:02:58.6]} 3. c4 {[%clk 0:03:01.5]} 3... d5 {[%clk 0:02:57.4]}
4. e3 {[%clk 0:03:01.5]} 4... c5 {[%clk 0:02:56.5]} 5. cxd5 {[%clk 0:03:00.6]}
5... exd5 {[%clk 0:02:56.1]} 6. Be2 {[%clk 0:02:57.5]} 6... Nc6 {[%clk
0:02:55.1]} 7. O-O {[%clk 0:02:57]} 7... Bd6 {[%clk 0:02:54.8]} 8. dxc5 {[%clk
0:02:56.2]} 8... Bxc5 {[%clk 0:02:54.5]} 9. Nc3 {[%clk 0:02:54.7]} 9... O-O
{[%clk 0:02:54.5]} 10. b3 {[%clk 0:02:39.4]} 10... Bg4 {[%clk 0:02:45]} 11. Bb2
{[%clk 0:02:38.5]} 11... Rc8 {[%clk 0:02:44.9]} 12. Rc1 {[%clk 0:02:35.9]} 12...
Bd6 {[%clk 0:02:44]} 13. Nb5 {[%clk 0:02:34.6]} 13... Bb8 {[%clk 0:02:43.3]} 14.
Nbd4 {[%clk 0:02:34]} 14... Re8 {[%clk 0:02:30.3]} 15. Nxc6 {[%clk 0:02:23.1]}
15... bxc6 {[%clk 0:02:29.6]} 16. Nd4 {[%clk 0:02:16.5]} 16... Qd6 {[%clk
0:02:24]} 17. g3 {[%clk 0:02:13.5]} 17... Bh3 {[%clk 0:02:21.1]} 18. Re1 {[%clk
0:02:12.1]} 18... Ne4 {[%clk 0:02:20.4]} 19. Bf3 {[%clk 0:02:01.3]} 19... c5
{[%clk 0:01:50.8]} 20. Nb5 {[%clk 0:01:35.6]} 20... Qe6 {[%clk 0:01:50.6]} 21.
Bg2 {[%clk 0:01:23.1]} 21... Bg4 {[%clk 0:01:33.3]} 22. f3 {[%clk 0:01:15.9]}
22... Bh5 {[%clk 0:01:32.4]} 23. Qd3 {[%clk 0:01:06.1]} 23... Ng5 {[%clk
0:01:26.1]} 24. Qc3 {[%clk 0:00:56]} 24... f6 {[%clk 0:01:14.9]} 25. e4 {[%clk
0:00:43.3]} 25... d4 {[%clk 0:01:01.8]} 26. Qd3 {[%clk 0:00:38.9]} 26... Nh3+
{[%clk 0:01:01.3]} 27. Kf1 {[%clk 0:00:36.1]} 27... Ng5 {[%clk 0:00:43.2]} 28.
f4 {[%clk 0:00:34.3]} 28... Nf7 {[%clk 0:00:39.2]} 29. Na3 {[%clk 0:00:20]}
29... Nd6 {[%clk 0:00:33.6]} 30. Nc4 {[%clk 0:00:18.2]} 30... Nxc4 {[%clk
0:00:32.9]} 31. Rxc4 {[%clk 0:00:17.7]} 31... Bf7 {[%clk 0:00:26.8]} 32. f5
{[%clk 0:00:16]} 32... Qe7 {[%clk 0:00:26]} 33. Rcc1 {[%clk 0:00:15.1]} 33...
Be5 {[%clk 0:00:25.6]} 34. Ba3 {[%clk 0:00:12.6]} 34... Bd6 {[%clk 0:00:25.2]}
35. Qc2 {[%clk 0:00:10.1]} 35... Rc7 {[%clk 0:00:25]} 36. Qe2 {[%clk 0:00:05.5]}
36... Rec8 {[%clk 0:00:23.7]} 37. Bb2 {[%clk 0:00:04.2]} 37... Be5 {[%clk
0:00:22.6]} 38. Rc2 {[%clk 0:00:03.1]} 38... c4 {[%clk 0:00:22.3]} 39. bxc4
{[%clk 0:00:02.6]} 39... Rxc4 {[%clk 0:00:23.2]} 0-1

[Event "*** Titled Tuesday Blitz"]
[Site "Chess.com"]
[Date "2020.10.20"]
[Round "3"]
[White "Leonid_Starozhilov"]
[Black "MarceloPlaya"]
[Result "0-1"]
[WhiteElo "2626"]
[BlackElo "2302"]
[TimeControl "180+1"]
[EndTime "10:29:14 PDT"]
[Termination "MarceloPlaya won on time"]

1. e4 {[%clk 0:03:00.9]} 1... e6 {[%clk 0:02:59.4]} 2. d4 {[%clk 0:02:58.3]}
2... d5 {[%clk 0:02:59.3]} 3. e5 {[%clk 0:02:58.4]} 3... c5 {[%clk 0:02:58.7]}
4. c3 {[%clk 0:02:59.3]} 4... Nc6 {[%clk 0:02:58.7]} 5. Nf3 {[%clk 0:02:59.5]}
5... Qb6 {[%clk 0:02:58.5]} 6. a3 {[%clk 0:02:59.8]} 6... c4 {[%clk 0:02:58.1]}
7. Nbd2 {[%clk 0:02:59.3]} 7... f6 {[%clk 0:02:58]} 8. b3 {[%clk 0:02:47.8]}
8... cxb3 {[%clk 0:02:55.3]} 9. Nxb3 {[%clk 0:02:47.4]} 9... fxe5 {[%clk
0:02:53.6]} 10. dxe5 {[%clk 0:02:47]} 10... Nge7 {[%clk 0:02:49.7]} 11. Be3
{[%clk 0:02:41.7]} 11... Qc7 {[%clk 0:02:43.2]} 12. Bd4 {[%clk 0:02:24]} 12...
Ng6 {[%clk 0:02:26.9]} 13. Bb5 {[%clk 0:02:02.6]} 13... Be7 {[%clk 0:02:20]} 14.
O-O {[%clk 0:01:57.2]} 14... O-O {[%clk 0:02:19]} 15. Re1 {[%clk 0:01:50.5]}
15... Bd7 {[%clk 0:02:17.1]} 16. a4 {[%clk 0:01:50.9]} 16... a6 {[%clk
0:02:10.1]} 17. Bd3 {[%clk 0:01:39.1]} 17... Nf4 {[%clk 0:02:02.5]} 18. Bf1
{[%clk 0:01:39.3]} 18... Na5 {[%clk 0:01:58.9]} 19. Nxa5 {[%clk 0:01:35]} 19...
Qxa5 {[%clk 0:01:57.7]} 20. g3 {[%clk 0:01:35.2]} 20... Ng6 {[%clk 0:01:49.1]}
21. h4 {[%clk 0:01:35.1]} 21... Bc5 {[%clk 0:01:36.3]} 22. Bd3 {[%clk
0:01:25.5]} 22... Bxd4 {[%clk 0:01:31.5]} 23. cxd4 {[%clk 0:01:07.9]} 23... Ne7
{[%clk 0:00:37.6]} 24. Re3 {[%clk 0:00:32.8]} 24... Nf5 {[%clk 0:00:34.8]} 25.
Re1 {[%clk 0:00:28.3]} 25... h6 {[%clk 0:00:30.9]} 26. Kg2 {[%clk 0:00:25.3]}
26... Rf7 {[%clk 0:00:29.8]} 27. g4 {[%clk 0:00:23]} 27... Ne7 {[%clk
0:00:28.9]} 28. g5 {[%clk 0:00:23.1]} 28... Raf8 {[%clk 0:00:27.9]} 29. Re3
{[%clk 0:00:21.3]} 29... Nf5 {[%clk 0:00:27.2]} 30. Bxf5 {[%clk 0:00:20.4]}
30... Rxf5 {[%clk 0:00:27.3]} 31. gxh6 {[%clk 0:00:19.8]} 31... gxh6 {[%clk
0:00:27.2]} 32. Kh2 {[%clk 0:00:12.3]} 32... Qd8 {[%clk 0:00:25.4]} 33. Qe2
{[%clk 0:00:04.3]} 33... Kh7 {[%clk 0:00:22.4]} 34. Rg1 {[%clk 0:00:04.2]} 34...
Be8 {[%clk 0:00:21.3]} 35. Rg3 {[%clk 0:00:04.5]} 35... Bh5 {[%clk 0:00:18.7]}
36. Qb2 {[%clk 0:00:02.8]} 36... Bxf3 {[%clk 0:00:14.4]} 37. Kg1 {[%clk
0:00:01.4]} 37... Qxh4 {[%clk 0:00:11.7]} 38. Qxb7+ {[%clk 0:00:01.4]} 38...
R8f7 {[%clk 0:00:09.8]} 39. Rexf3 {[%clk 0:00:01.8]} 39... Rxb7 {[%clk
0:00:08.6]} 0-1